Cogmind - Beta 16 @@@ ROGUE MODE // 2025.11.22 @ 20:24:37 Player: Volvedor Result: Destroyed by RS-YRR(j) with Overtuned Pulse Rifle Performance ------------- Evolutions (0) 0 Regions Visited (3) 600 Robots Destroyed (29) 145 Value Destroyed (888) 888 Prototype IDs (6) 120 Alien Tech Used (0) 0 Bonus (654) 654 TOTAL SCORE: 2407 Bonus ------- Registered with UFD 300 Met Optimus in HQ 500 Friendly Fire -146 Cogmind --------- Core Integrity 0/250 Matter 88/300 Energy 290/290 System Corruption 0% Temperature Cool (58) Movement Walking (90) Location -9/Scraptown Parts ------- > --- POWER (1) -------- Improved Deuterium Engine > --- PROPULSION (2) --- VSS Leg VSS Leg > --- UTILITY (2) ------ Structural Scanner Targeting Computer > --- WEAPON (2) ------- Mini Grenade Launcher Mini Grenade Launcher > --- INVENTORY (5) ---- Improved Aluminum Leg Signal Interpreter Subdweller Beam Cannon Barrage Gun Peak State ------------ > --- POWER ------------ Improved Deuterium Engine > --- PROPULSION ------- VSS Leg VSS Leg > --- UTILITY ---------- Structural Scanner Targeting Computer > --- WEAPON ----------- Mini Grenade Launcher Mini Grenade Launcher > --- INVENTORY -------- Improved Aluminum Leg Signal Interpreter Subdweller Beam Cannon Barrage Gun Mini Grenade Launcher [Rating: 17] Favorites ----------- Power Ion Engine Engine Ion Engine Power Core Light Nuclear Core Propulsion Improved Aluminum Leg Treads Light Treads Leg Improved Aluminum Leg Utility Structural Scanner Device Structural Scanner Processor Targeting Computer Weapon Mini Grenade Launcher Energy Gun Small Laser Energy Cannon Subdweller Beam Cannon Ballistic Gun Barrage Gun Launcher Mini Grenade Launcher Build | -11 -10 -10 -9 ------- Run | Yrd Mat Sub Scr Slots Evolved . | . . . . Power . | . . . . Propulsion . | . . . . Utility . | . . . . Weapon . | . . . . Parts Attached 31 | 7 11 3 10 Power 6 | 1 2 . 3 Engine 5 | 1 1 . 3 Core 1 | . 1 . . Reactor . | . . . . Propulsion 11 | 2 4 . 5 Treads 2 | 2 . . . Leg 9 | . 4 . 5 Wheel . | . . . . Hover . | . . . . Flight . | . . . . Utility 4 | 2 2 . . Device 3 | 2 1 . . Storage . | . . . . Processor 1 | . 1 . . Hackware . | . . . . Protection . | . . . . Artifact . | . . . . Weapon 10 | 2 3 3 2 Energy Gun 3 | 1 2 . . Energy Cannon 1 | . . . 1 Ballistic Gun 3 | 1 1 1 . Ballistic Cannon . | . . . . Launcher 3 | . . 2 1 Special Weapon . | . . . . Impact Weapon . | . . . . Slashing Weapon . | . . . . Piercing Weapon . | . . . . Special Melee Weapon . | . . . . Unidentified Prototypes . | . . . . Parts Lost 5 | . 4 . 1 Power 1 | . 1 . . Propulsion 1 | . 1 . . Utility . | . . . . Weapon 3 | . 2 . 1 Highest Loss Streak 3 | . 3 . 1 To Critical Strikes . | . . . . Average Backups 4 | 3 4 4 4 Power . | . . 1 . Propulsion . | 1 1 . . Utility . | . 1 1 1 Weapon 2 | . 1 2 3 Tool/Special . | . . . . Unused Backups 9 | . 5 . 4 Power 2 | . . . 2 Propulsion 3 | . 3 . . Utility 2 | . 1 . 1 Weapon 2 | . 1 . 1 Tool/Special . | . . . . Average Slot Usage (%) 99 | . 97 100 99 Engine 13 | . 12 14 14 Leg 27 | . 25 28 28 Device 16 | . 23 14 14 Processor 11 | . 4 14 14 Energy Gun 4 | . 13 6 . Ballistic Gun 11 | . 14 6 13 Launcher 10 | . . 15 13 Peak Build Rating 17 | 9 11 12 17 Average Rating 11 | 6 10 10 14 On Entrance 7 | . 9 9 12 Avg Prop Armor Cover (%) 14 | . . . 14 Naked Turns . | . . . . Heaviest Build 21 | 11 11 10 21 Greatest Support 40 | 40 40 26 38 Greatest Overweight (x) 2 | . . . 2 Average Overweight (x) . | . . . . Largest Inventory Capacity 5 | 5 5 5 5 Average Capacity 5 | 5 5 5 5 Most Carried 5 | 5 5 5 5 Average Carried 4 | 3 4 4 4 Final Capacity 5 | 5 5 5 5 Final Carried 5 | 5 5 5 4 Class Distribution -------------------- 93% | Mutant 6% | Scavenger-Mutant Dominant Class ---------------- Mutant | -10/Materials Mutant | -10/Subcaves Mutant | -9/Scraptown Resources | -11 -10 -10 -9 ----------- Run | Yrd Mat Sub Scr Matter Collected 791 | 303 193 80 215 Remotely . | . . . . Salvage Created 1103 | 145 366 136 456 Parts 58 | 12 20 8 18 Haulers Intercepted . | . . . . Recyclers Shooed . | . . . . Parts Field Recycled . | . . . . Retrieved Matter . | . . . . Parts Self-Destructed . | . . . . Prevented . | . . . . Parts Restored . | . . . . Kills | -11 -10 -10 -9 ------- Run | Yrd Mat Sub Scr Combat Hostiles Destroyed 24 | . 10 4 10 Guns 10 | . 10 . . AOE 14 | . . 4 10 Classes Destroyed 10 | 3 2 1 4 Worker 1 | 1 . . . Tunneler 2 | 2 . . . Recycler 1 | 1 . . . Swarmer 4 | . 4 . . Grunt 6 | . 6 . . Subdweller 4 | . . 4 . Federalist 1 | . . . 1 Explorer 2 | . . . 2 Guru 2 | . . . 2 Scrapper 6 | . . . 6 Best Kill Streak 6 | 3 3 2 6 Combat Bots Only 6 | . 3 2 6 Max Kills in Single Turn 2 | 1 1 2 2 Gunslinging . | . . . . Exploded 2 | . . 2 2 Melee . | . . . . Uniques/NPCs Destroyed . | . . . . Combat | -11 -10 -10 -9 -------- Run | Yrd Mat Sub Scr Hostile Shots Fired 116 | . 67 8 41 Missed 28 | . 12 3 13 Hits 88 | . 55 5 28 Melee 2 | . . . 2 Projectile 86 | . 55 5 26 Critical Strikes 2 | . . . 2 Damage Taken 1274 | 35 601 160 478 Core 265 | . 120 8 137 Absorbed by Shields . | . . . . Core Remaining (%) 100 | 100 . . . Volleys Fired 73 | 11 42 3 17 Largest 2 | 2 2 2 2 Hottest 108 | 60 60 60 108 Shots Fired 137 | 22 77 5 33 Gun 102 | 22 77 1 2 Cannon 2 | . . . 2 Launcher 33 | . . 4 29 Special . | . . . . Kinetic 56 | 11 42 1 2 Thermal 13 | . 11 . 2 Explosive 33 | . . 4 29 Electromagnetic 35 | 11 24 . . Robot Hit Streak 17 | 4 17 3 6 Robot Miss Streak 3 | 1 3 . 1 Penetration Max . | . . . . Secondary Targets . | . . . . Shots Hit Robots 80 | 14 49 2 15 Core Hits 63 | 4 18 5 36 Critical Kills . | . . . . Critical Parts Destroyed . | . . . . Critical Strikes 1 | . 1 . . Corrupt 1 | . 1 . . Melee Attacks . | . . . . Impact . | . . . . Slashing . | . . . . Piercing . | . . . . Sneak Attacks . | . . . . Combat Hostiles . | . . . . Follow-up Attacks . | . . . . Damage Inflicted 2602 | 223 608 242 1529 Guns 826 | 177 608 . 41 Cannons 55 | . . . 55 Explosions 1721 | 46 . 242 1433 Melee . | . . . . Ramming . | . . . . Kinetic 405 | 74 290 . 41 Thermal 169 | 46 68 . 55 Explosive 1675 | . . 242 1433 Electromagnetic 353 | 103 250 . . Impact . | . . . . Slashing . | . . . . Piercing . | . . . . Highest Corruption . | . . . . Average Corruption . | . . . . Corruption Purged . | . . . . Corruption Blocked . | . . . . Overload Shots . | . . . . Overflow Damage 15 | . . . 15 Projectiles . | . . . . Explosions 15 | . . . 15 Melee . | . . . . Knockbacks . | . . . . Impact . | . . . . Kinetic . | . . . . Secondary . | . . . . Self-Inflicted Damage 85 | 35 . 26 24 Shots 4 | 1 . 1 2 Rammed . | . . . . Targets Rammed . | . . . . Kicked . | . . . . Crushed . | . . . . Highest Temperature 170 | 12 170 . 170 Average Temperature 76 | 12 74 . 82 Received Heat Transfer 506 | . 270 36 200 Siege Activations . | . . . . Martial Activations . | . . . . Shielding Activations . | . . . . Robots Disrupted . | . . . . Combat Hostiles . | . . . . Robots Corrupted . | . . . . Combat Hostiles . | . . . . Parts Fried . | . . . . Impact Corruptions . | . . . . Robots Melted . | . . . . Combat Hostiles . | . . . . Parts Melted 4 | . 2 . 2 Heat Transferred 274 | 50 150 . 74 Parts Sabotaged . | . . . . Parts Stolen . | . . . . Parts Stripped . | . . . . Power Chain Reactions 1 | 1 . . . Alert | -11 -10 -10 -9 ------- Run | Yrd Mat Sub Scr Maximum Alert Level . | . . . . Low Security (%) 100 | 100 100 . . Level 1 . | . . . . Level 2 . | . . . . Level 3 . | . . . . Level 4 . | . . . . Level 5 . | . . . . High Security . | . . . . Max Security . | . . . . Peak Influence 96 | 10 96 . . Initial 3 | . 3 . . Average 23 | 1 26 . . Influence Increases 297 | 20 277 . . Destroy 0b10 Robot/C 200 | . 200 . . Destroy 0b10 Robot/NC 20 | 20 . . . Destroy Leader 30 | . 30 . . Destroy Structure 2 | . 2 . . Lose Combat Pursuer 45 | . 45 . . Influence Decreases 297 | 15 282 . . Entered New Map 2 | . 2 . . Time Decay 255 | 15 240 . . Lost Part 40 | . 40 . . Squads Dispatched . | . . . . Investigation . | . . . . Extermination . | . . . . Reinforcement . | . . . . Assault . | . . . . Garrison . | . . . . Intercept . | . . . . Searches Triggered . | . . . . Construction Impeded . | . . . . Haulers Reinforced . | . . . . Active Scanning Responses . | . . . . Cargo Convoy Interrupts . | . . . . Stealth | -11 -10 -10 -9 --------- Run | Yrd Mat Sub Scr Distress Signals 1 | . 1 . . Communications Jammed . | . . . . Distress Signals . | . . . . Times Spotted 46 | . 19 3 24 Peak Tracking Total 10 | . 7 2 10 Tactical Retreats 1 | . 1 . . Traps | -11 -10 -10 -9 ------- Run | Yrd Mat Sub Scr Traps Triggered . | . . . . Indirectly . | . . . . Trap Hack Attempts . | . . . . Triggered . | . . . . Disarmed . | . . . . Reprogrammed . | . . . . Reused . | . . . . Traps Extracted . | . . . . Installed . | . . . . Triggered . | . . . . Machines | -11 -10 -10 -9 ---------- Run | Yrd Mat Sub Scr Machines Disabled . | . . . . Max in Single Turn . | . . . . Machines Repaired . | . . . . Machines Dismantled . | . . . . Machines Sabotaged . | . . . . Overloaded Fab Kills . | . . . . Hacking | -11 -10 -10 -9 --------- Run | Yrd Mat Sub Scr Machines Accessed 12 | . 4 . 8 Terminals 4 | . 4 . . Fabricators . | . . . . Repair Stations . | . . . . Recycling Units . | . . . . Scanalyzers . | . . . . Garrison Access . | . . . . Total Hacks 57 | . 6 . 51 Successful 53 | . 2 . 51 Failed 4 | . 4 . . Catastrophic 1 | . 1 . . Database Lockouts . | . . . . Manual . | . . . . Terminals 6 | . 6 . . Fabricators . | . . . . Repair Stations . | . . . . Recycling Units . | . . . . Scanalyzers . | . . . . Garrison Access . | . . . . Terminal Hacks 53 | . 2 . 51 Record 50 | . . . 50 Hauler Manifests 1 | . 1 . . Zone Layout 1 | . 1 . . Proto ID Catalog 1 | . . . 1 Fabricator Hacks . | . . . . Repair Station Hacks . | . . . . Recycling Unit Hacks . | . . . . Scanalyzer . | . . . . Garrison Access Hacks . | . . . . Unauthorized Hacks . | . . . . Terminals . | . . . . Fabricators . | . . . . Repair Stations . | . . . . Recycling Units . | . . . . Scanalyzers . | . . . . Garrison Access . | . . . . Data Cores Recovered . | . . . . Used . | . . . . Hacking Detections 3 | . 3 . . Full Trace Events . | . . . . Feedback Events . | . . . . Feedback Blocked . | . . . . Robot Schematics Acquired . | . . . . Robots Built . | . . . . Authchips . | . . . . Time . | . . . . Total Robot Build Rating . | . . . . Part Schematics Acquired . | . . . . Parts Built . | . . . . Authchips . | . . . . Time . | . . . . Total Part Build Rating . | . . . . Part Studies Acquired . | . . . . Parts Repaired . | . . . . Time . | . . . . Parts Recycled . | . . . . Recycled Matter . | . . . . Retrieved Matter . | . . . . Retrieved Components . | . . . . Parts Scanalyzed . | . . . . Part Schematics Acquired . | . . . . Parts Damaged . | . . . . Bothacking | -11 -10 -10 -9 ------------ Run | Yrd Mat Sub Scr Used RIF Installer . | . . . . Robots Hacked . | . . . . Non-combat . | . . . . Combat . | . . . . Robot Hacks Applied . | . . . . Relay Couplers Released . | . . . . Fabnet Peak Effective % . | . . . . Robots Rewired . | . . . . Allies Hacked . | . . . . Hacks Repelled . | . . . . Allies | -11 -10 -10 -9 -------- Run | Yrd Mat Sub Scr Total Allies . | . . . . Largest Group . | . . . . Highest-Rated Group . | . . . . Highest-Rated Ally . | . . . . Total Orders . | . . . . Ally Attacks . | . . . . Total Damage . | . . . . Kills . | . . . . Allies Corrupted . | . . . . Allies Melted 7 | . . . 7 Intel | -11 -10 -10 -9 ------- Run | Yrd Mat Sub Scr Active Infowar (turns) 4036 | 62 906 1036 2032 Terrain 675 | 62 613 . . Structural 3361 | . 293 1036 2032 Seismic 673 | 57 616 . . Robot Analysis Total . | . . . . Derelict Logs Recovered 1 | . . . 1 Drone Launches . | . . . . Drone Recoveries . | . . . . Exploration | -11 -10 -10 -9 ------------- Run | Yrd Mat Sub Scr Turns Passed 4109 | 135 906 1036 2032 Spaces Moved 2815 | 55 426 704 1630 Core 10 | 1 . . 9 Treads 65 | 54 11 . . Legs 2740 | . 415 704 1621 Wheels . | . . . . Hover . | . . . . Flight . | . . . . Fastest Speed 50 | 50 120 120 90 Average Speed 121 | 158 121 120 120 Slowest Speed 190 | 160 160 120 190 Overloaded Moves . | . . . . Propulsion Burnouts . | . . . . Robots Hopped . | . . . . Potential Cave-ins . | . . . . Cave-ins Triggered . | . . . . Exploration Rate (%) 48 | 4 63 35 90 Regions Visited 3 Branch Regions 2 Pre-discovered Areas . | . . . . Known Exits Taken . | . . . . Unknown Exits Taken 3 | 1 1 1 . Scrap Searched 4 | . . . 4 Spaces Dug . | . . . . Terrain Destroyed 53 | . . 37 16 Melee . | . . . . Projectile . | . . . . AOE 53 | . . 37 16 Terrain Rammed . | . . . . Walls Destroyed . | . . . . Machines Disabled . | . . . . Actions | -11 -10 -10 -9 --------- Run | Yrd Mat Sub Scr Total 3386 | 78 744 890 1674 Wait 425 | 1 243 177 4 Move 2812 | 54 425 703 1630 Hop . | . . . . Pick Up 20 | 5 11 2 2 Fast Attach 11 | 7 3 . 1 Attach 4 | . 3 . 1 Detach . | . . . . Swap 18 | . 5 3 10 Drop 23 | . 12 2 9 Fire 73 | 11 42 3 17 Melee . | . . . . Ram . | . . . . Kick . | . . . . Crush . | . . . . Escape Stasis . | . . . . Rewire . | . . . . Trap . | . . . . Miscellaneous . | . . . . Route ------- -11/Scrapyard -10/Materials (discovered 4 exits: [*Mat x2] / [*Min] / [*Sub]) -10/Subcaves -9/Scraptown (discovered 2 exits: *Fac x2) History --------- Turn | Location | Event 14 | -11/Scrapyard | Discovered new exit (range 14) 136 | -11/Scrapyard | Entered Materials 203 | -10/Materials | Discovered new exit (range 6) 289 | -10/Materials | Discovered new exit (range 9) 301 | -10/Materials | Build established: Mutant 508 | -10/Materials | Lost 3 parts (1n2w) 737 | -10/Materials | Discovered new exit (range 15) 979 | -10/Materials | Discovered new exit (range 8) 1042 | -10/Materials | Entered Subcaves 1043 | -10/Subcaves | Approached by a straggling Scientist 1309 | -10/Subcaves | Scientist uncovered a shortcut to Scraptown 1508 | -10/Subcaves | Core integrity fell below 50% 2078 | -10/Subcaves | Entered Scraptown 2381 | -9/Scraptown | Discovered new exit (range 5) 2412 | -9/Scraptown | Scanned Subdweller tech in exchange for log data 2415 | -9/Scraptown | Learned Research terminal intel 2454 | -9/Scraptown | Visited IN-MT5's Study 2480 | -9/Scraptown | Visited Cyclists 2521 | -9/Scraptown | Visited UFD Registry 2529 | -9/Scraptown | Visited Spacefarers 2617 | -9/Scraptown | Visited Assassins FH 2664 | -9/Scraptown | Visited Red Mages 2985 | -9/Scraptown | Heard Great Nut preacher, LISTEN AND RECITE! 3060 | -9/Scraptown | Visited Awakened 3111 | -9/Scraptown | Visited SPCMW 3381 | -9/Scraptown | Registered with UFD as "Gearchip" 3413 | -9/Scraptown | Visited Science Guys 3459 | -9/Scraptown | Visited Derelict Rescue Squad 3500 | -9/Scraptown | Visited DA-N13 Charitable Foundation 3725 | -9/Scraptown | Visited Abandonware Association 3737 | -9/Scraptown | Learned abandonware demo "REBOOT5.EXE" 3764 | -9/Scraptown | Visited Scrap Suit Storage 3816 | -9/Scraptown | Met Optimus 3816 | -9/Scraptown | Accepted into 0bPrime 3900 | -9/Scraptown | Civil war broke out across Scraptown 3901 | -9/Scraptown | Visited Scrapoid Pod Storage 3954 | -9/Scraptown | Lost 5 allies 3974 | -9/Scraptown | Identified exit to Factory 3991 | -9/Scraptown | Visited Observation Area 4025 | -9/Scraptown | Lost 3 allies 4037 | -9/Scraptown | Optimus destroyed in the chaos of civil war 4090 | -9/Scraptown | Lost 6 allies 4101 | -9/Scraptown | Core integrity fell below 20% 4110 | -9/Scraptown | Destroyed by RS-YRR(j) with Overtuned Pulse Rifle Last Messages --------------- 04089_ Dropped Lgt. Deuterium Engine. 04093_ 0P-1JJ(x) destroyed. 04093_ P4-OU7(x) destroyed. 04093_ Destroyed Imp. Targeting Computer. 04094_ PY-XR0(p) suffers critical hit (Burn). 04097_ Destroyed Imp. Hover Unit. 04097_ OT-IJ7(p) destroyed. 04097_ PY-XR0(p) destroyed. 04098_ KS-KE7(j) cannibalizes VSS Leg to repair Ovr. Titanium Leg. 04099_ Mni. Grenade Launcher destroyed. 04100_ KS-KE7(j) destroyed. 04100_ Acquired 50 matter. 04100_ Bolt penetrates Reinforced Barrier. 04104_ QB-3AM(j) destroyed. 04105_ Critical hit (Burn: +50). 04107_ Bolt penetrates PM-VKJ(j). 04109_ FD-U81(j) heat short circuits Ovr. Titanium Leg. 04110_ FD-U81(j) destroyed. Map ----- +----------------------------------------------------+ | ?????"#" ??????????##" "?????"###########????? " | | ??????# ??????????##" "?????"###########????? | | ##""""##"#""##???????##" "???? "###[!#=!!# ?????" | | ######## #####???????##" """"" "### /# [ # ???""" | | ##" "##???????##" "###= # # ???? | | ##X "##???????## ""##?? ????? | | ##" "##???????## ##?? ????""""" | | ## ###????#######!########### ########### | | ### ###########????#######=#"######### ########""# | | ##????##" %"= """"" """"""""" | | ##???####" [!=%% | | ##???####" *!=!* | | ##???## " =[ !! = | | ##?######" j %= | | #### ##?######" % ! | | #### ##?##"""" !!= " """"""" | | ??## ##?##"""" =% """"""""""""""""""" | | #### ##?##"""" ! #### ############ | | #### ##?##"""" ####### | | " # #####"""" %! X"##???? | | # ###"#""" = "" "" ###???? | | # ""#"#"" "" "" X"###### | | # """"#" " "#*!" " ####### | | # ""###"### = " !%= " | | # ######### % " !!= "" | | # #########== @ [ "# " " ####### | | *%[=*[ "# "" "" ""###### | | # %! [%% !%*=%!! "# "" "" ###???? | | # = *== !! ! "# X"##???? | | " # * =! x =[* [=!*"# ####### | | #### %!= != j ! *= !###### ############ | | !=! != !*= """"""""""""""""""" | | %[*[% ! [ / = !=" """"""""""""""""" | | =[!%*= ! *% [=% | | = = ! = % | | = ! | | *= [ #""""#" ! | | ! #"??"# % | | ! #"??"#" " """""""""" """"""""" | | ###### ## "##"??"##;#;;; ########### ######### | | ####"??"## "#### # | | # ##??????##" #### # | | "# ##??????##&" " ""#### # | | "# ##??????##&" "" ""####"" ""# $ | | "# ##??????##& ""####" "# | | """"""""## ##??????##"" """"####"" ""# | | "## ##??????##"""" """####" & "#### | | ### ##??????##""|" "####"" ""#### | | ### ##??????##"""" """####" "##?? | | ########## ##??????##""" X """""####" &&&" "##?? | +----------------------------------------------------+ Best States ------------- Heat Dissipation 25 Energy Generation 16 Energy Capacity 290 Matter Stores 300 Matter Capacity 300 Sight Range 16 Terrain Scan Range 16 Terrain Scan Density 10 Evasion (%) 55 Targeting Accuracy 5 Recoil Reduction 2 Item Schematics ----------------- None Robot Schematics ------------------ None Fabricated ------------ Nothing Repaired ---------- Nothing Studied --------- None Alien Tech Used ----------------- None Achievements -------------- Backstab Civilization 2243 Link The Feds Nice Directions, Buddy Sprinter Challenges ------------ None Game ------ Seed AuthchipPhaseArmor Manual? 0 Play Time 00:38:52 Cumulative 38.5 hours Start 2025.11.22 @ 19:47:35 End 2025.11.22 @ 20:24:37 Sessions 1 Manual Loads 0 Difficulty Rogue Special Mode None Game No. 41 Rogue 41 Adventurer 0 Explorer 0 Win Type - Total 0 Types 0/0/0/0/0/0/0/0/0/0 Lore% 24 Gallery% 24 Achievement% 15 Wizard Run 0 Options --------- Layout 2 ASCII 0 Keyboard 0 Movement Mouse Keybinds 0 Fullscreen 1 Font 16/TerminusCaps Map View 55x47 Zoom Use 86% Tactical HUD 1 Map Filters NONE Filters NONE Steam 1 RUN: 6e85308f-5d1f-4dc2-823f-2c9187ef47a3